[Event "Titled Tuesday Blitz May 16 Late 2023"]
[White "krucki03"]
[Black "rikchessmx"]
[WhiteElo "2468"]
[BlackElo "2234"]
[Result "1-0"]
[Round "02"]
[TimeControl "180+2"]
[Date "2023.05.16"]
[WhiteClock "0:00:06"]
[BlackClock "0:01:35"]

1. Nf3 {[%clk 0:03:00]}  Nf6 {[%clk 0:02:59]} 2. c4 {[%clk 0:03:01]}  g6 {[%clk 0:02:58]} 3. b3 {[%clk 0:03:01]}  Bg7 {[%clk 0:02:58]} 4. Bb2 {[%clk 0:03:01]}  d6 {[%clk 0:02:59]} 5. e3 {[%clk 0:03:01]}  e5 {[%clk 0:02:59]} 6. Be2 {[%clk 0:03:01]}  O-O {[%clk 0:02:57]} 7. O-O {[%clk 0:03:01]}  a5 {[%clk 0:02:58]} 8. a3 {[%clk 0:02:59]}  Na6 {[%clk 0:02:58]} 9. Nc3 {[%clk 0:02:58]}  e4 {[%clk 0:02:54]} 10. Nd4 {[%clk 0:02:57]}  Nc5 {[%clk 0:02:53]} 11. b4 {[%clk 0:02:57]}  axb4 {[%clk 0:02:52]} 12. axb4 {[%clk 0:02:58]}  Rxa1 {[%clk 0:02:52]} 13. Bxa1 {[%clk 0:02:57]}  Ne6 {[%clk 0:02:50]} 14. Nxe6 {[%clk 0:02:27]}  Bxe6 {[%clk 0:02:48]} 15. d3 {[%clk 0:02:27]}  exd3 {[%clk 0:02:47]} 16. Qxd3 {[%clk 0:02:26]}  Re8 {[%clk 0:02:44]} 17. Bf3 {[%clk 0:02:22]}  Bf5 {[%clk 0:02:44]} 18. Qd2 {[%clk 0:02:11]}  Bc8 {[%clk 0:02:42]} 19. Rd1 {[%clk 0:02:07]}  Ng4 {[%clk 0:02:41]} 20. h3 {[%clk 0:01:59]}  Ne5 {[%clk 0:02:41]} 21. Be2 {[%clk 0:01:59]}  b6 {[%clk 0:02:41]} 22. Nd5 {[%clk 0:01:57]}  Be6 {[%clk 0:02:35]} 23. Kf1 {[%clk 0:01:09]}  c6 {[%clk 0:02:23]} 24. Nf4 {[%clk 0:01:03]}  Bxc4 {[%clk 0:02:21]} 25. Qxd6 {[%clk 0:01:00]}  Bxe2+ {[%clk 0:02:21]} 26. Kxe2 {[%clk 0:00:47]}  Qa8 {[%clk 0:02:20]} 27. Qd4 {[%clk 0:00:34]}  Qa6+ {[%clk 0:02:17]} 28. Nd3 {[%clk 0:00:34]}  c5 {[%clk 0:02:07]} 29. bxc5 {[%clk 0:00:21]}  bxc5 {[%clk 0:02:07]} 30. Qb2 {[%clk 0:00:04]}  c4 {[%clk 0:01:55]} 31. Nb4 {[%clk 0:00:04]}  Qb5 {[%clk 0:01:53]} 32. Qc3 {[%clk 0:00:04]}  Ra8 {[%clk 0:01:51]} 33. f4 {[%clk 0:00:03]}  Rxa1 {[%clk 0:01:48]} 34. fxe5 {[%clk 0:00:03]}  Rxd1 {[%clk 0:01:44]} 35. Kxd1 {[%clk 0:00:04]}  Bxe5 {[%clk 0:01:44]} 36. Qd2 {[%clk 0:00:04]}  c3 {[%clk 0:01:43]} 37. Qd8+ {[%clk 0:00:04]}  Kg7 {[%clk 0:01:43]} 38. Nd3 {[%clk 0:00:04]}  Qb1+ {[%clk 0:01:41]} 39. Ke2 {[%clk 0:00:04]}  Qc2+ {[%clk 0:01:41]} 40. Kf3 {[%clk 0:00:04]}  Qd2 {[%clk 0:01:40]} 41. Qd5 {[%clk 0:00:04]}  Bf6 {[%clk 0:01:40]} 42. Qc4 {[%clk 0:00:05]}  c2 {[%clk 0:01:39]} 43. g4 {[%clk 0:00:05]}  Qxd3 {[%clk 0:01:40]} 44. Qxd3 {[%clk 0:00:05]}  c1=Q {[%clk 0:01:40]} 45. Qe2 {[%clk 0:00:05]}  Qh1+ {[%clk 0:01:39]} 46. Kg3 {[%clk 0:00:05]}  Be5+ {[%clk 0:01:40]} 47. Kh4 {[%clk 0:00:05]}  h6 {[%clk 0:01:38]} 48. g5 {[%clk 0:00:03]}  hxg5+ {[%clk 0:01:37]} 49. Kg4 {[%clk 0:00:03]}  Qg2+ {[%clk 0:01:37]} 50. Qxg2 {[%clk 0:00:03]}  f5+ {[%clk 0:01:36]} 51. Kf3 {[%clk 0:00:03]}  Kf6 {[%clk 0:01:36]} 52. Ke2 {[%clk 0:00:04]}  g4 {[%clk 0:01:36]} 53. Qc6+ {[%clk 0:00:04]}  Kg5 {[%clk 0:01:36]} 54. hxg4 {[%clk 0:00:05]}  fxg4 {[%clk 0:01:36]} 55. Qd7 {[%clk 0:00:05]}  g3 {[%clk 0:01:35]} 56. Kf1 {[%clk 0:00:05]}  Kh4 {[%clk 0:01:35]} 57. Kg2 {[%clk 0:00:06]}  g5 {[%clk 0:01:35]} 58. Qh3# {[%clk 0:00:06]} 1-0


[Site "https://www.chess.com"]

[Event "Titled Tuesday Blitz May 16 Late 2023"]
[White "Krasteva, Beloslava"]
[Black "Koc, Przemyslaw"]
[WhiteFideId "2922029"]
[BlackFideId "1109081"]
[WhiteElo "2187"]
[BlackElo "2161"]
[Result "1-0"]
[Round "02"]
[TimeControl "180+2"]
[Date "2023.05.16"]
[WhiteClock "0:00:18"]
[BlackClock "0:01:44"]

1. c4 {[%clk 0:03:00]}  d6 {[%clk 0:03:00]} 2. d4 {[%clk 0:02:58]}  Nf6 {[%clk 0:02:59]} 3. Nc3 {[%clk 0:02:57]}  e5 {[%clk 0:02:57]} 4. d5 {[%clk 0:02:56]}  g6 {[%clk 0:02:57]} 5. e4 {[%clk 0:02:56]}  Bg7 {[%clk 0:02:57]} 6. Bd3 {[%clk 0:02:55]}  O-O {[%clk 0:02:58]} 7. h3 {[%clk 0:02:53]}  a5 {[%clk 0:02:56]} 8. g4 {[%clk 0:02:51]}  Nbd7 {[%clk 0:02:56]} 9. Nf3 {[%clk 0:02:49]}  Nc5 {[%clk 0:02:55]} 10. Bc2 {[%clk 0:02:44]}  c6 {[%clk 0:02:52]} 11. Be3 {[%clk 0:02:41]}  Qc7 {[%clk 0:02:46]} 12. Qe2 {[%clk 0:02:32]}  cxd5 {[%clk 0:02:41]} 13. cxd5 {[%clk 0:02:27]}  Bd7 {[%clk 0:02:39]} 14. Nd2 {[%clk 0:02:17]}  Rfb8 {[%clk 0:02:32]} 15. a4 {[%clk 0:02:10]}  Na6 {[%clk 0:02:30]} 16. Rc1 {[%clk 0:02:04]}  Nb4 {[%clk 0:02:30]} 17. Nc4 {[%clk 0:01:34]}  b6 {[%clk 0:02:29]} 18. Bb1 {[%clk 0:01:23]}  Bf8 {[%clk 0:02:27]} 19. Na3 {[%clk 0:01:18]}  Qd8 {[%clk 0:02:23]} 20. Ncb5 {[%clk 0:01:14]}  Rc8 {[%clk 0:02:19]} 21. O-O {[%clk 0:01:10]}  h5 {[%clk 0:02:18]} 22. f3 {[%clk 0:01:08]}  Nh7 {[%clk 0:02:15]} 23. Nc4 {[%clk 0:00:59]}  Bxb5 {[%clk 0:02:13]} 24. axb5 {[%clk 0:00:58]}  Qh4 {[%clk 0:02:14]} 25. Nxb6 {[%clk 0:00:52]}  Rxc1 {[%clk 0:02:14]} 26. Rxc1 {[%clk 0:00:52]}  Rb8 {[%clk 0:02:09]} 27. Nd7 {[%clk 0:00:49]}  Qg3+ {[%clk 0:02:09]} 28. Qg2 {[%clk 0:00:47]}  Qxg2+ {[%clk 0:02:09]} 29. Kxg2 {[%clk 0:00:47]}  Rxb5 {[%clk 0:02:10]} 30. Rc8 {[%clk 0:00:42]}  hxg4 {[%clk 0:02:10]} 31. Bh6 {[%clk 0:00:31]}  gxf3+ {[%clk 0:02:09]} 32. Kxf3 {[%clk 0:00:31]}  f5 {[%clk 0:02:08]} 33. Nxf8 {[%clk 0:00:28]}  Nxf8 {[%clk 0:02:07]} 34. Bxf8 {[%clk 0:00:25]}  fxe4+ {[%clk 0:01:56]} 35. Bxe4 {[%clk 0:00:24]}  Kf7 {[%clk 0:01:53]} 36. Bxd6 {[%clk 0:00:24]}  Na2 {[%clk 0:01:52]} 37. Bxe5 {[%clk 0:00:23]}  Nc1 {[%clk 0:01:51]} 38. Rxc1 {[%clk 0:00:23]}  a4 {[%clk 0:01:50]} 39. Rc7+ {[%clk 0:00:22]}  Ke8 {[%clk 0:01:50]} 40. Bxg6+ {[%clk 0:00:22]}  Kd8 {[%clk 0:01:50]} 41. Ke4 {[%clk 0:00:21]}  Rb4+ {[%clk 0:01:44]} 42. Kf5 {[%clk 0:00:20]}  a3 {[%clk 0:01:44]} 43. bxa3 {[%clk 0:00:20]}  Rh4 {[%clk 0:01:44]} 44. Bf6+ {[%clk 0:00:18]}  Kxc7 {[%clk 0:01:43]} 45. Bxh4 {[%clk 0:00:18]}  Kd6 {[%clk 0:01:44]} 46. Ke4 {[%clk 0:00:18]} 1-0


[Site "https://www.chess.com"]

[Event "Titled Tuesday Blitz May 16 Late 2023"]
[White "Talbi, Chafik"]
[Black "Vega Gutierrez, Sabrina"]
[WhiteFideId "7903715"]
[BlackFideId "2219026"]
[WhiteElo "2186"]
[BlackElo "2209"]
[Result "0-1"]
[Round "02"]
[TimeControl "180+2"]
[Date "2023.05.16"]
[WhiteClock "0:00:00"]
[BlackClock "0:00:10"]

1. e4 {[%clk 0:02:59]}  c5 {[%clk 0:02:56]} 2. Nf3 {[%clk 0:02:58]}  Nc6 {[%clk 0:02:55]} 3. c3 {[%clk 0:02:58]}  d5 {[%clk 0:02:55]} 4. exd5 {[%clk 0:02:58]}  Qxd5 {[%clk 0:02:56]} 5. d4 {[%clk 0:02:56]}  Bf5 {[%clk 0:02:57]} 6. Na3 {[%clk 0:02:55]}  cxd4 {[%clk 0:02:53]} 7. Nb5 {[%clk 0:02:54]}  O-O-O {[%clk 0:02:45]} 8. cxd4 {[%clk 0:02:38]}  e5 {[%clk 0:02:39]} 9. Nc3 {[%clk 0:02:24]}  Bb4 {[%clk 0:02:38]} 10. Bd2 {[%clk 0:02:10]}  Bxc3 {[%clk 0:02:38]} 11. bxc3 {[%clk 0:02:09]}  exd4 {[%clk 0:02:31]} 12. cxd4 {[%clk 0:02:08]}  Nf6 {[%clk 0:02:28]} 13. Be2 {[%clk 0:02:06]}  Nxd4 {[%clk 0:02:18]} 14. Nxd4 {[%clk 0:02:05]}  Qxd4 {[%clk 0:02:18]} 15. Qc1+ {[%clk 0:01:51]}  Kb8 {[%clk 0:02:16]} 16. Bf4+ {[%clk 0:01:38]}  Ka8 {[%clk 0:02:16]} 17. O-O {[%clk 0:01:38]}  Rc8 {[%clk 0:02:08]} 18. Qe3 {[%clk 0:01:35]}  Qxe3 {[%clk 0:02:01]} 19. Bxe3 {[%clk 0:01:34]}  Rc2 {[%clk 0:01:54]} 20. Bd1 {[%clk 0:01:33]}  Rc7 {[%clk 0:01:41]} 21. a4 {[%clk 0:01:24]}  Nd5 {[%clk 0:01:37]} 22. Bd4 {[%clk 0:01:21]}  f6 {[%clk 0:01:38]} 23. Bf3 {[%clk 0:01:20]}  Nb4 {[%clk 0:01:36]} 24. Rac1 {[%clk 0:01:01]}  Nc2 {[%clk 0:01:28]} 25. Bb2 {[%clk 0:00:58]}  Rhc8 {[%clk 0:01:21]} 26. a5 {[%clk 0:00:53]}  a6 {[%clk 0:01:20]} 27. g4 {[%clk 0:00:47]}  Bg6 {[%clk 0:01:19]} 28. Rfd1 {[%clk 0:00:41]}  Rc5 {[%clk 0:01:11]} 29. Rd5 {[%clk 0:00:34]}  Rxd5 {[%clk 0:01:10]} 30. Bxd5 {[%clk 0:00:33]}  Rc5 {[%clk 0:01:10]} 31. Bb3 {[%clk 0:00:33]}  Kb8 {[%clk 0:00:46]} 32. Ba3 {[%clk 0:00:27]}  Rc3 {[%clk 0:00:44]} 33. Bd6+ {[%clk 0:00:26]}  Kc8 {[%clk 0:00:39]} 34. Bxc2 {[%clk 0:00:24]}  Bxc2 {[%clk 0:00:29]} 35. Bf8 {[%clk 0:00:22]}  g6 {[%clk 0:00:28]} 36. Bg7 {[%clk 0:00:21]}  Rc4 {[%clk 0:00:22]} 37. h3 {[%clk 0:00:19]}  f5 {[%clk 0:00:21]} 38. gxf5 {[%clk 0:00:17]}  gxf5 {[%clk 0:00:22]} 39. Be5 {[%clk 0:00:15]}  Kd7 {[%clk 0:00:22]} 40. f4 {[%clk 0:00:15]}  Kc6 {[%clk 0:00:22]} 41. Kf2 {[%clk 0:00:06]}  Kb5 {[%clk 0:00:21]} 42. Ra1 {[%clk 0:00:05]}  Be4 {[%clk 0:00:15]} 43. Ra2 {[%clk 0:00:04]}  Bd5 {[%clk 0:00:12]} 44. Ra3 {[%clk 0:00:02]}  Rc2+ {[%clk 0:00:11]} 45. Ke3 {[%clk 0:00:00]}  Bc4 {[%clk 0:00:10]} 0-1


[Site "https://www.chess.com"]

[Event "Titled Tuesday Blitz May 16 Late 2023"]
[White "Dubreuil, Julien"]
[Black "ElDivis"]
[WhiteFideId "621285"]
[WhiteElo "2231"]
[BlackElo "2465"]
[Result "0-1"]
[Round "02"]
[TimeControl "180+2"]
[Date "2023.05.16"]
[WhiteClock "0:01:54"]
[BlackClock "0:01:35"]

1. e4 {[%clk 0:03:00]}  c5 {[%clk 0:02:58]} 2. Nf3 {[%clk 0:03:01]}  d6 {[%clk 0:02:57]} 3. d4 {[%clk 0:03:01]}  cxd4 {[%clk 0:02:56]} 4. Nxd4 {[%clk 0:03:01]}  Nf6 {[%clk 0:02:55]} 5. Nc3 {[%clk 0:03:02]}  Nc6 {[%clk 0:02:55]} 6. Be3 {[%clk 0:03:00]}  Ng4 {[%clk 0:02:51]} 7. Bb5 {[%clk 0:02:58]}  Nxe3 {[%clk 0:02:45]} 8. Qd3 {[%clk 0:02:51]}  Nxg2+ {[%clk 0:02:37]} 9. Kf1 {[%clk 0:02:49]}  Nf4 {[%clk 0:02:29]} 10. Qf3 {[%clk 0:02:47]}  Ne6 {[%clk 0:02:10]} 11. Nxc6 {[%clk 0:02:45]}  bxc6 {[%clk 0:02:11]} 12. Bxc6+ {[%clk 0:02:45]}  Bd7 {[%clk 0:02:12]} 13. e5 {[%clk 0:02:45]}  Rc8 {[%clk 0:02:07]} 14. Bd5 {[%clk 0:02:38]}  dxe5 {[%clk 0:02:03]} 15. Re1 {[%clk 0:02:15]}  g6 {[%clk 0:01:58]} 16. h4 {[%clk 0:02:12]}  h5 {[%clk 0:01:55]} 17. Rg1 {[%clk 0:02:05]}  Bg7 {[%clk 0:01:54]} 18. Ne4 {[%clk 0:01:58]}  O-O {[%clk 0:01:39]} 19. c3 {[%clk 0:01:56]}  Nf4 {[%clk 0:01:36]} 20. Bb3 {[%clk 0:01:54]}  Bh3+ {[%clk 0:01:35]} 0-1


[Site "https://www.chess.com"]

[Event "Titled Tuesday Blitz May 16 Late 2023"]
[White "merinasian"]
[Black "Dylag, Emilia"]
[BlackFideId "21805172"]
[WhiteElo "2456"]
[BlackElo "1878"]
[Result "0-1"]
[Round "02"]
[TimeControl "180+2"]
[Date "2023.05.16"]
[WhiteClock "0:00:38"]
[BlackClock "0:00:18"]

1. d4 {[%clk 0:03:00]}  Nf6 {[%clk 0:02:27]} 2. Nf3 {[%clk 0:03:00]}  e6 {[%clk 0:02:27]} 3. g3 {[%clk 0:03:00]}  d5 {[%clk 0:02:27]} 4. Bg2 {[%clk 0:03:00]}  Be7 {[%clk 0:02:28]} 5. O-O {[%clk 0:03:00]}  O-O {[%clk 0:02:29]} 6. c4 {[%clk 0:03:01]}  dxc4 {[%clk 0:02:29]} 7. a4 {[%clk 0:03:00]}  c5 {[%clk 0:02:24]} 8. dxc5 {[%clk 0:02:52]}  Qxd1 {[%clk 0:02:22]} 9. Rxd1 {[%clk 0:02:52]}  Bxc5 {[%clk 0:02:22]} 10. Ne5 {[%clk 0:02:52]}  Nc6 {[%clk 0:02:15]} 11. Nxc4 {[%clk 0:02:51]}  Nd4 {[%clk 0:02:13]} 12. e3 {[%clk 0:02:24]}  Nb3 {[%clk 0:02:06]} 13. Ra2 {[%clk 0:02:23]}  Rb8 {[%clk 0:02:01]} 14. Nc3 {[%clk 0:02:15]}  Bd7 {[%clk 0:01:50]} 15. Ne5 {[%clk 0:02:14]}  Be8 {[%clk 0:01:42]} 16. Bd2 {[%clk 0:01:58]}  Nxd2 {[%clk 0:01:38]} 17. Rxd2 {[%clk 0:01:58]}  b5 {[%clk 0:01:36]} 18. axb5 {[%clk 0:01:54]}  Bxb5 {[%clk 0:01:37]} 19. Nxb5 {[%clk 0:01:53]}  Rxb5 {[%clk 0:01:38]} 20. Nc6 {[%clk 0:01:44]}  Rc8 {[%clk 0:01:10]} 21. Rxa7 {[%clk 0:01:29]}  Bxa7 {[%clk 0:01:11]} 22. Ne7+ {[%clk 0:01:29]}  Kf8 {[%clk 0:01:01]} 23. Nxc8 {[%clk 0:01:29]}  Bb6 {[%clk 0:00:57]} 24. Nxb6 {[%clk 0:01:17]}  Rxb6 {[%clk 0:00:57]} 25. h3 {[%clk 0:01:16]}  Ke7 {[%clk 0:00:57]} 26. Bf3 {[%clk 0:01:15]}  Nd7 {[%clk 0:00:57]} 27. Kg2 {[%clk 0:01:13]}  Ne5 {[%clk 0:00:56]} 28. Be2 {[%clk 0:01:13]}  f5 {[%clk 0:00:55]} 29. f4 {[%clk 0:01:07]}  Nf7 {[%clk 0:00:52]} 30. Rc2 {[%clk 0:01:06]}  Kd6 {[%clk 0:00:50]} 31. Bc4 {[%clk 0:01:03]}  Ke7 {[%clk 0:00:29]} 32. b3 {[%clk 0:01:00]}  Nd6 {[%clk 0:00:29]} 33. Kf3 {[%clk 0:01:00]}  Ne4 {[%clk 0:00:28]} 34. g4 {[%clk 0:01:00]}  g6 {[%clk 0:00:26]} 35. Ra2 {[%clk 0:01:00]}  Rb7 {[%clk 0:00:22]} 36. h4 {[%clk 0:00:54]}  Rd7 {[%clk 0:00:22]} 37. gxf5 {[%clk 0:00:46]}  exf5 {[%clk 0:00:20]} 38. Ke2 {[%clk 0:00:38]}  Nc3+ {[%clk 0:00:18]} 0-1


[Site "https://www.chess.com"]

[Event "Titled Tuesday Blitz May 16 Late 2023"]
[White "Womacka, Mathias"]
[Black "Schut, Han"]
[WhiteFideId "4611390"]
[BlackFideId "1005561"]
[WhiteElo "2377"]
[BlackElo "2024"]
[Result "1-0"]
[Round "02"]
[TimeControl "180+2"]
[Date "2023.05.16"]
[WhiteClock "0:00:20"]
[BlackClock "0:00:01"]

1. e4 {[%clk 0:03:00]}  c5 {[%clk 0:02:56]} 2. Nf3 {[%clk 0:03:00]}  d6 {[%clk 0:02:56]} 3. d4 {[%clk 0:03:00]}  cxd4 {[%clk 0:02:57]} 4. Nxd4 {[%clk 0:03:00]}  Nf6 {[%clk 0:02:58]} 5. Nc3 {[%clk 0:03:00]}  a6 {[%clk 0:02:58]} 6. Be2 {[%clk 0:03:00]}  e5 {[%clk 0:02:59]} 7. Nb3 {[%clk 0:03:00]}  Be7 {[%clk 0:02:59]} 8. O-O {[%clk 0:03:01]}  Be6 {[%clk 0:02:59]} 9. f4 {[%clk 0:02:58]}  Qc7 {[%clk 0:02:56]} 10. Kh1 {[%clk 0:02:58]}  Nbd7 {[%clk 0:02:56]} 11. g4 {[%clk 0:02:52]}  h6 {[%clk 0:02:53]} 12. g5 {[%clk 0:02:50]}  hxg5 {[%clk 0:02:37]} 13. fxg5 {[%clk 0:02:51]}  Ng8 {[%clk 0:02:32]} 14. Bg4 {[%clk 0:02:33]}  O-O-O {[%clk 0:02:03]} 15. Be3 {[%clk 0:02:30]}  Kb8 {[%clk 0:02:00]} 16. Nd5 {[%clk 0:02:12]}  Bxd5 {[%clk 0:01:57]} 17. Qxd5 {[%clk 0:02:13]}  f6 {[%clk 0:01:43]} 18. g6 {[%clk 0:01:58]}  Nh6 {[%clk 0:01:17]} 19. Be6 {[%clk 0:01:52]}  Nf8 {[%clk 0:01:07]} 20. c4 {[%clk 0:01:39]}  Nxe6 {[%clk 0:01:06]} 21. Qxe6 {[%clk 0:01:38]}  Qd7 {[%clk 0:01:07]} 22. Qxd7 {[%clk 0:01:36]}  Rxd7 {[%clk 0:01:08]} 23. Rad1 {[%clk 0:01:10]}  Rc7 {[%clk 0:01:04]} 24. Nd2 {[%clk 0:01:09]}  Ng4 {[%clk 0:00:53]} 25. Bg1 {[%clk 0:01:08]}  Rh6 {[%clk 0:00:46]} 26. Rf3 {[%clk 0:01:01]}  Rxg6 {[%clk 0:00:41]} 27. Rg3 {[%clk 0:01:01]}  Rc8 {[%clk 0:00:33]} 28. h3 {[%clk 0:00:55]}  Rh8 {[%clk 0:00:33]} 29. Kg2 {[%clk 0:00:55]}  Rh4 {[%clk 0:00:20]} 30. Rxg4 {[%clk 0:00:51]}  Rhxg4+ {[%clk 0:00:20]} 31. hxg4 {[%clk 0:00:51]}  Rxg4+ {[%clk 0:00:21]} 32. Kf3 {[%clk 0:00:49]}  Rf4+ {[%clk 0:00:20]} 33. Ke2 {[%clk 0:00:45]}  f5 {[%clk 0:00:18]} 34. Be3 {[%clk 0:00:44]}  Rh4 {[%clk 0:00:15]} 35. exf5 {[%clk 0:00:44]}  Rh2+ {[%clk 0:00:15]} 36. Kd3 {[%clk 0:00:44]}  Rh3 {[%clk 0:00:15]} 37. Ne4 {[%clk 0:00:42]}  Kc7 {[%clk 0:00:14]} 38. Rg1 {[%clk 0:00:42]}  Bf6 {[%clk 0:00:14]} 39. Nxf6 {[%clk 0:00:38]}  gxf6 {[%clk 0:00:14]} 40. Rg6 {[%clk 0:00:38]}  d5 {[%clk 0:00:13]} 41. cxd5 {[%clk 0:00:38]}  Kd6 {[%clk 0:00:14]} 42. Rxf6+ {[%clk 0:00:38]}  Kxd5 {[%clk 0:00:15]} 43. Rb6 {[%clk 0:00:36]}  e4+ {[%clk 0:00:15]} 44. Ke2 {[%clk 0:00:35]}  Rh2+ {[%clk 0:00:16]} 45. Bf2 {[%clk 0:00:35]}  Ke5 {[%clk 0:00:12]} 46. Rxb7 {[%clk 0:00:31]}  Kf4 {[%clk 0:00:13]} 47. Rb3 {[%clk 0:00:28]}  a5 {[%clk 0:00:11]} 48. f6 {[%clk 0:00:25]}  a4 {[%clk 0:00:01]} 49. Ra3 {[%clk 0:00:20]} 1-0


[Site "https://www.chess.com"]

[Event "Titled Tuesday Blitz May 16 Late 2023"]
[White "Urbina Perez, Juan Antonio"]
[Black "Kejzar, Petra"]
[WhiteFideId "2217368"]
[BlackFideId "14610213"]
[WhiteElo "2197"]
[BlackElo "2089"]
[Result "0-1"]
[Round "02"]
[TimeControl "180+2"]
[Date "2023.05.16"]
[WhiteClock "0:00:06"]
[BlackClock "0:00:29"]

1. e4 {[%clk 0:03:00]}  e5 {[%clk 0:02:59]} 2. Nf3 {[%clk 0:03:00]}  Nc6 {[%clk 0:03:00]} 3. Bc4 {[%clk 0:03:00]}  Bc5 {[%clk 0:03:00]} 4. d3 {[%clk 0:03:01]}  Nf6 {[%clk 0:02:59]} 5. Bg5 {[%clk 0:03:01]}  h6 {[%clk 0:02:54]} 6. Bh4 {[%clk 0:03:02]}  d6 {[%clk 0:02:54]} 7. a4 {[%clk 0:03:01]}  Be6 {[%clk 0:02:47]} 8. Nbd2 {[%clk 0:03:00]}  Bxc4 {[%clk 0:02:37]} 9. Nxc4 {[%clk 0:03:01]}  g5 {[%clk 0:02:36]} 10. Bg3 {[%clk 0:02:59]}  Ne7 {[%clk 0:02:34]} 11. c3 {[%clk 0:02:55]}  a6 {[%clk 0:02:33]} 12. a5 {[%clk 0:02:50]}  Ng6 {[%clk 0:02:32]} 13. Ne3 {[%clk 0:02:43]}  Qd7 {[%clk 0:02:24]} 14. Nf5 {[%clk 0:02:34]}  Nf4 {[%clk 0:02:23]} 15. O-O {[%clk 0:02:30]}  Ba7 {[%clk 0:02:16]} 16. Re1 {[%clk 0:02:23]}  O-O-O {[%clk 0:02:16]} 17. b4 {[%clk 0:02:21]}  Rdg8 {[%clk 0:02:16]} 18. d4 {[%clk 0:02:16]}  Nxe4 {[%clk 0:02:10]} 19. Ne3 {[%clk 0:01:45]}  Nxc3 {[%clk 0:01:56]} 20. Qd2 {[%clk 0:01:40]}  Ne4 {[%clk 0:01:47]} 21. Qc2 {[%clk 0:01:39]}  Nxg3 {[%clk 0:01:33]} 22. hxg3 {[%clk 0:01:39]}  exd4 {[%clk 0:01:33]} 23. Nc4 {[%clk 0:01:14]}  d3 {[%clk 0:01:33]} 24. Qd2 {[%clk 0:01:05]}  Ne2+ {[%clk 0:01:30]} 25. Kh2 {[%clk 0:01:04]}  Bxf2 {[%clk 0:01:27]} 26. Rxe2 {[%clk 0:00:57]}  dxe2 {[%clk 0:01:25]} 27. Qxe2 {[%clk 0:00:57]}  Ba7 {[%clk 0:01:25]} 28. Rc1 {[%clk 0:00:56]}  h5 {[%clk 0:01:22]} 29. Qd3 {[%clk 0:00:33]}  h4 {[%clk 0:01:17]} 30. gxh4 {[%clk 0:00:32]}  g4 {[%clk 0:01:12]} 31. Nd4 {[%clk 0:00:30]}  g3+ {[%clk 0:01:11]} 32. Kg1 {[%clk 0:00:29]}  Rxh4 {[%clk 0:01:08]} 33. Nb6+ {[%clk 0:00:25]}  Bxb6 {[%clk 0:01:01]} 34. axb6 {[%clk 0:00:26]}  Rgh8 {[%clk 0:00:54]} 35. Qxg3 {[%clk 0:00:17]}  Rh1+ {[%clk 0:00:51]} 36. Kf2 {[%clk 0:00:17]}  Rxc1 {[%clk 0:00:51]} 37. Qg7 {[%clk 0:00:18]}  Re8 {[%clk 0:00:45]} 38. bxc7 {[%clk 0:00:17]}  Rd1 {[%clk 0:00:42]} 39. Nf3 {[%clk 0:00:16]}  Qf5 {[%clk 0:00:40]} 40. Qg3 {[%clk 0:00:10]}  Rd2+ {[%clk 0:00:34]} 41. Kg1 {[%clk 0:00:10]}  Rd1+ {[%clk 0:00:32]} 42. Kf2 {[%clk 0:00:06]}  Qc2+ {[%clk 0:00:29]} 0-1


[Site "https://www.chess.com"]

[Event "Titled Tuesday Blitz May 16 Late 2023"]
[White "Calhoun, Luke"]
[Black "liwadas82"]
[WhiteFideId "2064421"]
[WhiteElo "2253"]
[BlackElo "2446"]
[Result "0-1"]
[Round "02"]
[TimeControl "180+2"]
[Date "2023.05.16"]
[WhiteClock "0:00:36"]
[BlackClock "0:00:41"]

1. e4 {[%clk 0:03:00]}  e5 {[%clk 0:02:59]} 2. f4 {[%clk 0:03:00]}  exf4 {[%clk 0:02:58]} 3. Nf3 {[%clk 0:03:00]}  Be7 {[%clk 0:02:58]} 4. d4 {[%clk 0:02:58]}  Bh4+ {[%clk 0:02:48]} 5. Kd2 {[%clk 0:02:57]}  Be7 {[%clk 0:02:42]} 6. Nc3 {[%clk 0:02:56]}  Bb4 {[%clk 0:02:39]} 7. Bc4 {[%clk 0:02:53]}  Nf6 {[%clk 0:02:38]} 8. Qe2 {[%clk 0:02:48]}  O-O {[%clk 0:02:35]} 9. Kd3 {[%clk 0:02:46]}  Bxc3 {[%clk 0:02:24]} 10. bxc3 {[%clk 0:02:45]}  d5 {[%clk 0:02:16]} 11. exd5 {[%clk 0:02:44]}  Bf5+ {[%clk 0:02:10]} 12. Kd2 {[%clk 0:02:43]}  Ne4+ {[%clk 0:02:10]} 13. Ke1 {[%clk 0:02:41]}  Nxc3 {[%clk 0:02:04]} 14. Qf2 {[%clk 0:02:35]}  Re8+ {[%clk 0:02:00]} 15. Kf1 {[%clk 0:02:34]}  Nxd5 {[%clk 0:01:56]} 16. Bxd5 {[%clk 0:02:32]}  Qxd5 {[%clk 0:01:56]} 17. Bxf4 {[%clk 0:02:32]}  Nc6 {[%clk 0:01:49]} 18. h3 {[%clk 0:02:20]}  Qc4+ {[%clk 0:01:48]} 19. Kg1 {[%clk 0:02:17]}  Re2 {[%clk 0:01:44]} 20. Qg3 {[%clk 0:02:12]}  Qxc2 {[%clk 0:01:42]} 21. Bxc7 {[%clk 0:02:07]}  Rae8 {[%clk 0:01:37]} 22. Rf1 {[%clk 0:02:04]}  Be4 {[%clk 0:01:32]} 23. Rh2 {[%clk 0:01:58]}  Qxa2 {[%clk 0:01:21]} 24. Be5 {[%clk 0:01:10]}  Nxe5 {[%clk 0:01:16]} 25. Nxe5 {[%clk 0:01:10]}  Bd5 {[%clk 0:01:00]} 26. Ng4 {[%clk 0:01:07]}  Kh8 {[%clk 0:00:51]} 27. Ne5 {[%clk 0:01:01]}  Qd2 {[%clk 0:00:45]} 28. Nxf7+ {[%clk 0:00:51]}  Bxf7 {[%clk 0:00:45]} 29. Rxf7 {[%clk 0:00:51]}  Qxd4+ {[%clk 0:00:45]} 30. Kf1 {[%clk 0:00:36]}  Qd1+ {[%clk 0:00:41]} 0-1


[Site "https://www.chess.com"]